Cogmind - Beta 9.5 @@@ ROGUE MODE // 2020.04.04 @ 13:06:16 // AFD2020/Player2 Player: Valguris Result: Core destroyed Performance ------------- Evolutions (6) 3000 Regions Visited (22) 4400 Robots Destroyed (300) 1500 Value Destroyed (10229) 10229 Prototype IDs (99) 1980 Alien Tech Used (2) 400 Bonus (6501) 6501 TOTAL SCORE: 28010 Bonus ------- Triggered High Security 500 High Alert Combat Kills 3664 Follower Combat Kills 6099 Aligned with FarCom 300 Met Data Miner 300 Met Imprinter 300 Triggered Deep Caves Wall 1000 Exposed GOLEM Chamber 3500 Met Zhirov 300 Friendly Fire -9462 Cogmind --------- Core Integrity 0/1150 Matter 196/300 Energy 227/455 System Corruption 9% Temperature Cool (0) Movement Rolling (120) Ox3 Location -4/Factory Parts ------- > --- POWER (3) -------- Neutrino Core Micro Fission Core Light Antimatter Reactor > --- PROPULSION (3) --- Centrium Wheel Centrium Wheel Centrium Wheel > --- UTILITY (12) ----- Advanced Heat Sink High-capacity Storage Unit Humpback Advanced Signal Interpreter Advanced Terrain Scan Processor Tactical Coordination Suite Advanced Transmission Jammer Improved Medium Armor Plating Remote Force Field Combat Drone Bay (0/2) > --- WEAPON (2) ------- Proton Missile Launcher Proton Missile Launcher > --- INVENTORY (32) --- Centrium Wheel Centrium Wheel Advanced Heat Sink Large Storage Unit Large Storage Unit High-capacity Storage Unit Zionite Biocell (1000) YI-UF0's Bottomless Matter Pit (1500) Makeshift Sensor Array Particle Accelerator Quantum Capacitor Dimensional Node Initializer Transdimensional Reconstructor EM Pulse Cannon HERF Cannon Cooled Proton Cannon Neutron Cannon Magnetic Acceleration Cannon Heavy Gauss Cannon Long-range Missile Launcher Micro-nuke Launcher Improved Remote Datajack Peak State ------------ > --- POWER ------------ Enhanced Nuclear Core Neutrino Core Neutrino Core > --- PROPULSION ------- Armored Huge Wheel Centrium Wheel > --- UTILITY ---------- Advanced Heat Sink High-capacity Storage Unit Humpback Advanced Signal Interpreter Advanced Terrain Scan Processor 0b10 Decoder Chip [Scout] Particle Accelerator Advanced Transmission Jammer Improved Heavy Armor Plating Remote Force Field > --- WEAPON ----------- HERF Cannon Cooled Proton Cannon > --- INVENTORY -------- Neutrino Core Micro Fission Core Light Antimatter Reactor Centrium Wheel Centrium Wheel Centrium Wheel Centrium Wheel Large Storage Unit Large Storage Unit High-capacity Storage Unit Zionite Biocell YI-UF0's Bottomless Matter Pit Makeshift Sensor Array Long-range Terrain Scanner Tactical Coordination Suite Quantum Capacitor Improved Medium Armor Plating Combat Drone Bay Dimensional Node Initializer Transdimensional Reconstructor EM Pulse Cannon Neutron Cannon Magnetic Acceleration Cannon Heavy Gauss Cannon Proton Missile Launcher Proton Missile Launcher Long-range Missile Launcher Micro-nuke Launcher Improved Remote Datajack [Rating: 116] Favorites ----------- Power Enhanced Nuclear Core Engine Angular Momentum Engine Power Core Enhanced Nuclear Core Reactor Antimatter Reactor Propulsion Armored Wheel Treads Light Treads Wheel Armored Wheel Hover Unit Aerolev Unit Utility Humpback Device Long-range Terrain Scanner Storage Humpback Processor Advanced Terrain Scan Processor Protection Hardened Heavy Armor Plating Weapon EM Pulse Cannon Energy Gun Particle Gun Energy Cannon EM Pulse Cannon Ballistic Gun Light Assault Rifle Ballistic Cannon Gauss Cannon Launcher Proton Missile Launcher Special Weapon Remote Datajack Special Melee Weapon Datajack Build | -11 -10 -10 -10 -9 -8 -7 -7 -7 -7 -7 -6 -6 -6 -6 -6 -5 -5 -5 -5 -5 -4 -4 ------- Run | Scr Mat Min Exi Min Mat Fac Low Low Zio Dee Pro Fac Low Low Dat Pro Fac Upp Upp Zhi Pro Fac Slots Evolved 12 | . . . . . 4 2 . . . . . 2 . . . . 2 . . . . 2 Power 2 | . . . . . . . . . . . . 1 . . . . . . . . . 1 Propulsion 1 | . . . . . . . . . . . . . . . . . . . . . . 1 Utility 9 | . . . . . 4 2 . . . . . 1 . . . . 2 . . . . . Weapon . | . . . . . . . . . . . . . . . . . . . . . . . Parts Attached 380 | 6 10 4 4 6 17 17 12 11 16 26 21 23 6 12 3 24 44 23 16 5 2 72 Power 20 | 1 3 1 . . 1 3 . . . 4 . 1 . 1 . . . . . . . 5 Engine 7 | 1 3 . . . . 1 . . . 1 . . . 1 . . . . . . . . Core 10 | . . 1 . . 1 2 . . . 1 . 1 . . . . . . . . . 4 Reactor 3 | . . . . . . . . . . 2 . . . . . . . . . . . 1 Propulsion 21 | 2 1 1 . . 4 2 . . . 2 2 2 . . . 1 . . . . . 4 Treads 7 | 2 1 1 . . 3 . . . . . . . . . . . . . . . . . Leg . | . . . . . . . . . . . . . . . . . . . . . . . Wheel 11 | . . . . . . 2 . . . 1 2 1 . . . 1 . . . . . 4 Hover 3 | . . . . . 1 . . . . 1 . 1 . . . . . . . . . . Flight . | . . . . . . . . . . . . . . . . . . . . . . . Utility 164 | 1 4 . 1 . 4 6 6 4 3 8 11 13 6 6 . 5 23 19 10 3 2 29 Device 117 | . 1 . . . 2 3 4 3 2 4 8 5 4 6 . 4 22 14 9 3 1 22 Storage 14 | 1 3 . 1 . . 1 . . . 1 . 2 . . . . . 2 . . 1 2 Processor 9 | . . . . . 2 1 1 . 1 . . 3 . . . 1 . . . . . . Hackware . | . . . . . . . . . . . . . . . . . . . . . . . Protection 24 | . . . . . . 1 1 1 . 3 3 3 2 . . . 1 3 1 . . 5 Artifact . | . . . . . . . . . . . . . . . . . . . . . . . Weapon 175 | 2 2 2 3 6 8 6 6 7 13 12 8 7 . 5 3 18 21 4 6 2 . 34 Energy Gun 20 | . 1 1 1 4 1 1 . . . 2 . 2 . 1 1 4 1 . . . . . Energy Cannon 66 | . . . . . . . 3 4 7 5 4 5 . 2 1 4 9 1 2 . . 19 Ballistic Gun 14 | 2 1 . . . 6 4 . . 1 . . . . . . . . . . . . . Ballistic Cannon 5 | . . . . . . . 1 . 1 . . . . . . . 2 . . . . 1 Launcher 56 | . . 1 1 1 1 . 2 2 2 2 3 . . 2 . 10 8 3 3 1 . 14 Special Weapon 10 | . . . . . . . . 1 2 2 1 . . . 1 . 1 . 1 1 . . Impact Weapon . | . . . . . . . . . . . . . . . . . . . . . . . Slashing Weapon . | . . . . . . . . . . . . . . . . . . . . . . . Piercing Weapon . | . . . . . . . . . . . . . . . . . . . . . . . Special Melee Weapon 4 | . . . 1 1 . 1 . . . 1 . . . . . . . . . . . . Unidentified Prototypes 18 | . . . . . 3 3 . . . 7 2 . 1 . . . . . . 2 . . Parts Lost 26 | . . 1 . . . 3 . 1 1 . 1 3 1 1 . . 2 . . . . 12 Power 6 | . . . . . . 1 . . . . . . . 1 . . . . . . . 4 Propulsion 2 | . . 1 . . . . . . . . . . . . . . . . . . . 1 Utility 13 | . . . . . . 2 . 1 1 . 1 2 1 . . . 1 . . . . 4 Weapon 5 | . . . . . . . . . . . . 1 . . . . 1 . . . . 3 Highest Loss Streak 7 | . . 1 . . . 1 . 1 1 . 1 2 1 1 . . 1 . . . . 7 Average Slot Usage (%) 88 | . 98 100 95 85 76 88 92 89 84 91 91 87 87 86 79 87 87 87 87 87 88 84 Engine 2 | . 13 8 . . . . . . . . . . . 4 6 6 5 5 5 5 5 2 Core 6 | . . 5 14 14 9 6 7 7 7 2 . 6 6 6 6 6 5 5 5 5 5 12 Reactor 1 | . . . . . . . . . . 4 7 6 6 1 . . . . . . . . Treads 5 | . 28 28 28 28 18 9 . . . . . . . . . . . . . . . . Wheel 10 | . . . . . . 5 15 15 15 14 15 13 12 12 12 12 11 11 11 11 11 9 Device 16 | . 6 . . . 13 19 20 20 15 16 17 9 17 18 18 12 22 21 26 26 26 18 Storage 14 | . 20 28 23 14 9 8 15 15 15 15 15 13 12 12 12 12 11 11 11 11 11 11 Processor 12 | . . . . . 9 15 17 13 7 15 15 21 13 12 12 17 16 16 16 16 16 14 Protection 3 | . . . . . . 5 . 1 6 6 4 3 4 6 6 6 4 4 . . . 4 Energy Gun 1 | . 9 9 . 15 4 . . . . . . 2 . 4 . 4 . . . . . . Energy Cannon 6 | . . . . . . . 6 10 12 12 14 9 12 7 . 4 2 3 1 . . 8 Ballistic Gun 2 | . 18 14 14 . 13 14 . . . . . . . . . . . . . . . . Launcher 3 | . . 4 . 12 . . 5 3 . . . . . . . 2 7 7 9 6 11 1 Naked Turns . | . . . . . . . . . . . . . . . . . . . . . . . Heaviest Build 224 | 9 41 41 91 91 93 133 139 153 157 147 155 177 186 186 176 179 185 185 185 169 199 224 Greatest Support 53 | 40 40 40 40 40 42 42 24 24 24 24 24 24 24 24 24 24 33 33 33 33 33 53 Greatest Overweight (x) 12 | . 1 1 2 2 2 5 5 6 6 12 6 7 7 7 7 7 7 5 5 5 7 5 Average Overweight (x) 4 | . . 1 . 2 2 3 5 5 5 5 6 6 6 7 6 7 5 4 4 4 5 3 Largest Inventory Capacity 60 | 6 16 16 24 24 24 32 32 32 32 32 32 52 32 32 32 32 32 52 32 32 40 60 Average Capacity 29 | 5 12 16 18 24 24 25 32 32 32 32 32 32 32 32 32 32 32 32 32 32 32 34 Most Carried 40 | 6 16 16 24 24 24 32 32 32 32 32 32 32 32 32 32 32 32 32 32 32 40 33 Average Carried 28 | 3 9 15 17 23 23 24 31 31 31 31 31 31 30 31 31 31 31 31 31 31 32 31 Final Capacity 32 | 6 16 16 24 24 24 32 32 32 32 32 32 32 32 32 32 32 32 32 32 32 32 32 Final Carried 32 | 6 16 16 24 24 24 32 32 31 32 32 32 32 30 32 32 32 32 32 32 32 32 23 Class Distribution -------------------- 61% | Hauler-Mutant 25% | Hauler-Skirmisher 10% | Mutant Dominant Class ---------------- Mutant | -10/Materials Mutant | -10/Mines Mutant | -10/Exiles Hauler-Mutant | -9/Mines Scavenger-Mutant | -8/Materials Hauler-Mutant | -7/Factory Hauler-Mutant | -7/Lower Caves Hauler-Mutant | -7/Lower Caves Hauler-Mutant | -7/Zion Hauler-Mutant | -7/Deep Caves Hauler-Skirmisher | -6/Proximity Caves Hauler-Mutant | -6/Factory Hauler-Mutant | -6/Lower Caves Hauler-Mutant | -6/Lower Caves Hauler-Mutant | -6/Data Miner Hauler-Mutant | -5/Proximity Caves Hauler-Mutant | -5/Factory Hauler-Skirmisher | -5/Upper Caves Hauler-Skirmisher | -5/Upper Caves Hauler-Mutant | -5/Zhirov Hauler-Skirmisher | -4/Proximity Caves Hauler-Mutant | -4/Factory Resources | -11 -10 -10 -10 -9 -8 -7 -7 -7 -7 -7 -6 -6 -6 -6 -6 -5 -5 -5 -5 -5 -4 -4 ----------- Run | Scr Mat Min Exi Min Mat Fac Low Low Zio Dee Pro Fac Low Low Dat Pro Fac Upp Upp Zhi Pro Fac Matter Collected 8854 | 256 378 97 20 400 571 289 467 794 698 770 250 155 236 431 . 516 787 290 207 88 198 956 Remotely 89 | . . . . . . 89 . . . . . . . . . . . . . . . . Salvage Created 13002 | 62 534 273 . 120 192 308 287 287 785 1369 548 252 84 379 . 828 1592 464 370 . 157 4111 Parts 509 | 2 35 7 . 3 14 13 14 14 48 16 20 10 . 16 . 48 60 13 12 . 5 159 Haulers Intercepted 10 | . 2 . . . 2 . . . . . . 1 . . . . 2 . . . . 3 Recyclers Shooed 5 | . . 1 . . 1 . . . . . . . . . . . 1 . . . . 2 Parts Field Recycled . | . . . . . . . . . . . . . . . . . . . . . . . Retrieved Matter . | . . . . . . . . . . . . . . . . . . . . . . . Parts Self-Destructed 192 | . . . . . . . 13 16 7 . 9 . 20 18 . 33 . 1 37 . 38 . Prevented 74 | . . . . . . . . . . . 15 . 1 6 . 20 . 13 6 . 13 . Kills | -11 -10 -10 -10 -9 -8 -7 -7 -7 -7 -7 -6 -6 -6 -6 -6 -5 -5 -5 -5 -5 -4 -4 ------- Run | Scr Mat Min Exi Min Mat Fac Low Low Zio Dee Pro Fac Low Low Dat Pro Fac Upp Upp Zhi Pro Fac Combat Hostiles Destroyed 214 | . 13 4 . . 2 5 9 11 8 46 6 2 2 7 . 14 19 6 4 . 3 53 Guns 22 | . 13 1 . . 1 5 . . . . . . . 2 . . . . . . . . Cannons 50 | . . . . . . . 2 1 4 8 4 2 2 2 . 2 2 . . . . 21 AOE 108 | . . 3 . . 1 . 7 10 3 34 1 . . 2 . 11 12 3 3 . 3 15 Classes Destroyed 27 | 1 3 . . . . 3 3 1 3 3 3 2 1 . . . 1 . . . 1 2 Worker 11 | . . . . . . . . . . . . . . . . . 3 . . . . 8 Builder 12 | . . . . . . . . . . . . 1 . . . . 2 . . . . 9 Hauler 10 | . 2 . . . 2 . . . . . . 1 . . . . 2 . . . . 3 Recycler 6 | 1 . 1 . . 1 1 . . . . . . . . . . 1 . . . . 1 Carrier 1 | . . . . . . . . . . . . . . . . . . . . . 1 . Minesweeper 2 | . . . . . . . 1 . . . . . . . . . . . . . 1 . Mechanic 1 | . . . . . . . . . . . . . . . . . 1 . . . . . Operator 2 | . . . . . . . . . . . . 2 . . . . . . . . . . Drone 1 | . . . . . . . . . . . 1 . . . . . . . . . . . Watcher 5 | . . . . . . 1 . . . . . . . . . . . . . . . 4 Swarmer 40 | . 3 4 . . 2 1 6 6 . . 2 . . 1 . 3 4 1 . . 2 5 Saboteur 2 | . . . . . . . . . . . . . . . . . . . . . . 2 Grunt 62 | . 10 . . . . 1 1 2 . . . . . 3 . 6 9 1 3 . 1 25 Brawler 7 | . . . . . . . . 1 . . . . . . . . 2 2 1 . . 1 Duelist 6 | . . . . . . . . . . . . . . 1 . . . 2 1 . . 2 Protector 2 | . . . . . . . . . . . 2 . . . . . . . . . . . Sentry 10 | . . . . . . 1 1 1 . . 1 . 1 1 . 1 1 1 . . . 1 Demolisher 1 | . . . . . . . . . . . 1 . . . . . . . . . . . Hunter 19 | . . . . . . . 1 1 . . . . . . . 4 2 . . . . 11 Programmer 10 | . . . . . . 2 . . . . . 2 . . . . 1 . . . . 5 Behemoth 1 | . . . . . . . . . . . . . . . . . . . . . . 1 Enhanced Grunt 1 | . . . . . . . . . . 1 . . . . . . . . . . . . Zionite 27 | . . . . . . . . . 27 . . . . . . . . . . . . . Decomposer 1 | . . . . . . . . . . . . . 1 . . . . . . . . . Packrat 1 | . . . . . . . . . . . . . . 1 . . . . . . . . Samaritan 1 | . . . . . . . 1 . . . . . . . . . . . . . . . Assembler 1 | . . . . . . . . . . 1 . . . . . . . . . . . . Assembled 36 | . . . . . . . . . . 36 . . . . . . . . . . . . Golem 10 | . . . . . . . . . . 10 . . . . . . . . . . . . Thug 2 | . . . . . . . . . 1 . . . 1 . . . . . . . . . Butcher 1 | . . . . . . . . . 1 . . . . . . . . . . . . . Mutant 6 | . . . . . . . . . 5 . . . . 1 . . . . . . . . Best Kill Streak 40 | 1 2 3 . . 2 1 6 6 6 40 2 1 1 2 . 3 7 6 2 . 3 13 Combat Bots Only 35 | . 2 3 . . 2 1 6 6 5 35 2 1 1 2 . 3 6 6 2 . 3 11 Max Kills in Single Turn 25 | 1 2 3 . 1 1 1 2 3 3 25 1 1 1 1 . 2 5 3 2 . 3 4 Gunslinging 1 | . 1 . . . . . . . . . . . . . . . . . . . . . Exploded 25 | . . 3 . . 1 . 2 3 3 25 1 . . 1 . 2 3 2 2 . 3 3 Melee . | . . . . . . . . . . . . . . . . . . . . . . . Uniques/NPCs Destroyed 3 | . . . . 1 . . . . 2 . . . . . . . . . . . . . YI-UF0 (-9/Mines) 7V-RTL (-7/Zion) Imprinter (-7/Zion) Combat | -11 -10 -10 -10 -9 -8 -7 -7 -7 -7 -7 -6 -6 -6 -6 -6 -5 -5 -5 -5 -5 -4 -4 -------- Run | Scr Mat Min Exi Min Mat Fac Low Low Zio Dee Pro Fac Low Low Dat Pro Fac Upp Upp Zhi Pro Fac Damage Taken 6656 | . 334 153 . . 73 245 158 255 264 237 354 453 257 223 . 125 593 7 146 . . 2779 Core 739 | . 64 11 . . . 18 17 47 33 87 . 14 . 15 . . 43 7 9 . . 374 Absorbed by Shields 1473 | . . . . . . . . . . . . . 45 236 . 110 521 7 113 . . 441 Core Remaining (%) 62 | 100 . . . 21 97 . . . . . 12 . . . . 67 . . . . 76 . Volleys Fired 779 | 4 60 51 . 7 9 33 38 22 89 68 36 34 7 27 2 16 56 7 5 4 8 196 Largest 2 | 2 2 2 . 2 2 2 2 2 2 2 2 2 2 2 1 2 2 2 2 1 2 2 Hottest 180 | 40 85 85 . 95 130 50 145 145 170 126 126 180 180 180 30 118 160 78 78 40 78 180 Shots Fired 1308 | 8 117 101 . 14 17 65 43 31 172 104 66 49 11 44 2 34 95 13 9 4 16 293 Gun 343 | 8 117 100 . 14 16 65 . . . . . 1 . 10 . 4 8 . . . . . Cannon 752 | . . . . . . . 33 18 168 86 63 48 11 29 . 6 40 1 . . . 249 Launcher 188 | . . 1 . . 1 . 10 10 2 9 . . . 5 . 24 46 12 8 . 16 44 Special 25 | . . . . . . . . 3 2 9 3 . . . 2 . 1 . 1 4 . . Kinetic 230 | 8 76 50 . . 11 65 2 . . . . . . . . . 10 . . . . 8 Thermal 593 | . 41 50 . . 5 . 31 18 168 17 1 26 11 19 . . 21 . . . . 185 Explosive 44 | . . 1 . . 1 . 10 10 2 9 . . . 5 . . 3 . . . . 3 Electromagnetic 416 | . . . . 14 . . . . . 69 62 23 . 20 . 34 60 13 8 . 16 97 Robot Hit Streak 35 | 5 13 13 . 5 6 10 7 6 15 35 18 10 5 7 1 6 9 6 11 5 6 17 Robot Miss Streak 8 | 2 4 3 . 4 3 3 4 2 5 3 2 3 1 2 3 1 2 1 2 . 2 8 Penetration Max 1 | . . . . . . . . . . . . . . . . . 1 . . . . . Secondary Targets 5 | . 5 . . . . . . . . . . . . . . . . . . . . . Max Gunslinging Chain 1 | . 1 . . . . . . . . . . . . . . . . . . . . . Shots Hit Robots 818 | 5 77 72 8 10 8 49 14 22 114 69 44 25 6 28 1 10 50 6 6 4 8 182 Core Hits 618 | 2 30 38 . 4 7 12 22 25 42 116 17 9 4 20 . 31 64 15 15 . 14 131 Critical Hits 15 | . . . . . . . 1 . 1 2 . 1 . . . . 2 . . . . 8 Critical Kills 6 | . . . . . . . 1 . . 2 . 1 . . . . . . . . . 2 Critical Parts Destroyed 6 | . . . . . . . . . 1 . . . . . . . 2 . . . . 3 Melee Attacks 11 | . . . 8 1 . 2 . . . . . . . . . . . . . . . . Impact . | . . . . . . . . . . . . . . . . . . . . . . . Slashing . | . . . . . . . . . . . . . . . . . . . . . . . Piercing . | . . . . . . . . . . . . . . . . . . . . . . . Sneak Attacks 10 | . . . 7 1 . 2 . . . . . . . . . . . . . . . . Combat Hostiles . | . . . . . . . . . . . . . . . . . . . . . . . Follow-up Attacks . | . . . . . . . . . . . . . . . . . . . . . . . Damage Inflicted 37259 | 41 844 1072 . 178 293 880 963 1474 4280 3358 1566 916 177 1179 . 1654 3767 1130 904 . 940 11643 Guns 3266 | 41 834 877 . 140 163 869 . . . . . 17 . 151 . 43 131 . . . . . Cannons 16042 | . . . . . . . 318 343 3105 1248 1178 807 177 587 . 153 734 . . . . 7392 Explosions 17867 | . . 170 . . 130 . 645 1131 1175 2110 388 92 . 441 . 1458 2902 1130 904 . 940 4251 Melee . | . . . . . . . . . . . . . . . . . . . . . . . Ramming 84 | . 10 25 . 38 . 11 . . . . . . . . . . . . . . . . Kinetic 2337 | 41 355 255 . . 115 869 49 . . . . . . . . . 386 . . . . 267 Thermal 14076 | . 479 701 . . 48 . 269 343 3105 122 388 639 177 424 . 314 810 152 265 . . 5840 Explosive 5867 | . . 91 . . 130 . 645 1131 258 2036 . . . 441 . . 232 . . . . 903 Electromagnetic 14895 | . . . . 140 . . . . 917 1200 1178 277 . 314 . 1340 2339 978 639 . 940 4633 Impact . | . . . . . . . . . . . . . . . . . . . . . . . Slashing . | . . . . . . . . . . . . . . . . . . . . . . . Piercing . | . . . . . . . . . . . . . . . . . . . . . . . Highest Corruption 9 | . . . . . . 4 4 6 6 . . 7 7 7 7 7 2 2 2 2 2 9 Average Corruption 4 | . . . . . . 3 4 4 6 . . 7 7 7 7 7 1 2 2 2 2 7 Corruption Purged . | . . . . . . . . . . . . . . . . . . . . . . . Effects 351 | . . . . . . 28 20 30 1 . . 33 48 52 4 36 7 10 9 1 21 51 Message Errors 87 | . . . . . . 8 4 7 . . . 7 14 12 . 8 3 4 1 1 13 5 Matter Fused 70 | . . . . . . 5 6 8 . . . 6 8 11 3 11 . . . . . 12 Heat Flow Errors 39 | . . . . . . 2 4 4 . . . 1 7 4 1 3 1 2 4 . 2 4 Energy Discharges 49 | . . . . . . 3 4 7 . . . 6 6 7 . 3 1 3 3 . 3 3 Parts Rejected 1 | . . . . . . . . . . . . . . . . 1 . . . . . . Data Loss (minor) 41 | . . . . . . 4 1 4 1 . . 6 7 8 . 5 . . 1 . 2 2 Data Loss (major) 11 | . . . . . . . . . . . . . 4 5 . 1 . . . . . 1 Misfires 7 | . . . . . . . . . . . . 1 1 2 . 2 . . . . . 1 Targeting Errors 36 | . . . . . . 5 1 . . . . 6 . 1 . 2 2 1 . . 1 17 Weapon Failures 10 | . . . . . . 1 . . . . . . 1 2 . . . . . . . 6 Overload Shots . | . . . . . . . . . . . . . . . . . . . . . . . Overflow Damage 1176 | . . 8 . . . . 27 30 202 47 36 32 21 83 . 32 75 24 13 . 22 524 Projectiles 723 | . . . . . . . 27 30 133 . . 32 21 53 . . 33 . . . . 394 Explosions 453 | . . 8 . . . . . . 69 47 36 . . 30 . 32 42 24 13 . 22 130 Melee . | . . . . . . . . . . . . . . . . . . . . . . . Knockbacks 3 | . . . . . . . . . . . . . . . . . . . . . . 3 Impact . | . . . . . . . . . . . . . . . . . . . . . . . Kinetic 3 | . . . . . . . . . . . . . . . . . . . . . . 3 Secondary . | . . . . . . . . . . . . . . . . . . . . . . . Self-Inflicted Damage 385 | . . 50 . . 24 . 10 78 . . 47 . . 33 . 6 102 . 35 . . . Shots 25 | . . 2 . . 1 . 1 4 . . 1 . . 2 . 1 10 . 3 . . . Rammed 12 | . 2 4 . 5 . 1 . . . . . . . . . . . . . . . . Targets Rammed 12 | . 2 4 . 5 . 1 . . . . . . . . . . . . . . . . Kicked . | . . . . . . . . . . . . . . . . . . . . . . . Crushed . | . . . . . . . . . . . . . . . . . . . . . . . Highest Temperature 336 | . 208 326 . 255 15 125 264 264 294 . 219 336 265 213 169 254 201 204 266 32 247 262 Average Temperature 87 | . 50 134 . 131 10 72 83 64 98 . 62 103 93 73 70 69 53 91 91 18 140 79 Received Heat Transfer 880 | . 99 42 . . . 30 54 18 154 . . . 4 55 . 39 50 . 54 . . 281 Effects 7 | . . . . . . . . . 2 . 1 1 . 2 . . 1 . . . . . Energy Bleed 2 | . . . . . . . . . . . . 1 . . . . 1 . . . . . Interference 5 | . . . . . . . . . 2 . 1 . . 2 . . . . . . . . Siege Activations . | . . . . . . . . . . . . . . . . . . . . . . . Robots Corrupted 40 | . . . . 1 . . . . 1 4 4 . . 1 . 1 6 3 1 . 1 17 Combat Hostiles 34 | . . . . . . . . . 1 4 1 . . 1 . 1 5 3 1 . . 17 Parts Fried 96 | . . . . 3 . . . . 2 2 5 1 . 2 . 10 16 4 . . . 51 Impact Corruptions . | . . . . . . . . . . . . . . . . . . . . . . . Robots Melted 2 | . . . . . . . . . 2 . . . . . . . . . . . . . Combat Hostiles . | . . . . . . . . . . . . . . . . . . . . . . . Parts Melted 13 | . 2 1 . . 1 . . 1 5 . . 3 . . . . . . . . . . Heat Transferred 14087 | . 1184 1552 . . 111 . 396 540 3935 150 337 605 194 462 . 350 610 162 212 . . 3287 Parts Sabotaged . | . . . . . . . . . . . . . . . . . . . . . . . Parts Stolen . | . . . . . . . . . . . . . . . . . . . . . . . Parts Stripped . | . . . . . . . . . . . . . . . . . . . . . . . Power Chain Reactions 34 | . . . . . . . . . . 1 4 1 . . . 5 8 1 2 . . 12 Missiles Intercepted . | . . . . . . . . . . . . . . . . . . . . . . . Alert | -11 -10 -10 -10 -9 -8 -7 -7 -7 -7 -7 -6 -6 -6 -6 -6 -5 -5 -5 -5 -5 -4 -4 ------- Run | Scr Mat Min Exi Min Mat Fac Low Low Zio Dee Pro Fac Low Low Dat Pro Fac Upp Upp Zhi Pro Fac Peak Influence 2594 | 5 565 380 . . 201 206 . . . . . 488 . . . . 2024 . . . . 2594 Average Influence 370 | 1 291 188 . . 61 54 . . . . . 98 . . . . 832 . . . . 1121 Maximum Alert Level 5 | . 2 1 . . 1 1 . . . . . 2 . . . . 5 . . . . 5 Low Security (%) 56 | 100 45 61 . 100 93 96 . . . . . 85 . . . . . . . . . . Level 1 16 | . 17 38 . . 6 3 . . . . . 14 . . . . 30 . . . . 22 Level 2 10 | . 37 . . . . . . . . . . . . . . . 28 . . . . 15 Level 3 3 | . . . . . . . . . . . . . . . . . 13 . . . . 10 Level 4 5 | . . . . . . . . . . . . . . . . . 5 . . . . 30 Level 5 5 | . . . . . . . . . . . . . . . . . 21 . . . . 17 High Security . | . . . . . . . . . . . . . . . . . . . . . . 4 Max Security . | . . . . . . . . . . . . . . . . . . . . . . . Squads Dispatched 39 | . 6 . . 1 . 5 . 1 . . . 4 . 1 . . 6 . . . . 15 Investigation 8 | . 5 . . 1 . 1 . . . . . 1 . . . . . . . . . . Extermination 9 | . . . . . . 2 . . . . . 3 . . . . 1 . . . . 3 Reinforcement 10 | . 1 . . . . 2 . . . . . . . . . . 3 . . . . 4 Assault 12 | . . . . . . . . 1 . . . . . 1 . . 2 . . . . 8 Garrison . | . . . . . . . . . . . . . . . . . . . . . . . Intercept . | . . . . . . . . . . . . . . . . . . . . . . . Construction Impeded 5 | . . . . . . . . . . . . . . . . . 3 . . . . 2 Haulers Reinforced 3 | . . . . . . 2 . . . . . . . . . . . . . . . 1 Stealth | -11 -10 -10 -10 -9 -8 -7 -7 -7 -7 -7 -6 -6 -6 -6 -6 -5 -5 -5 -5 -5 -4 -4 --------- Run | Scr Mat Min Exi Min Mat Fac Low Low Zio Dee Pro Fac Low Low Dat Pro Fac Upp Upp Zhi Pro Fac Distress Signals 15 | . . . . . 1 . . . . . 10 . . . . . 2 . . . . 2 Communications Jammed 260 | . . . . . . . . . . . . . . . . . 5 . . . . 255 Distress Signals 259 | . . . . . . . . . . . . . . . . . 5 . . . . 254 Times Spotted 434 | . 31 6 . . 9 18 11 20 53 49 11 7 11 25 . 18 36 11 9 . 8 101 Peak Tracking Total 37 | . 4 3 . . 4 3 4 10 5 37 3 5 7 8 . 6 6 6 5 . 3 9 Tactical Retreats 12 | . . . . . . . . 1 3 . . . . 1 . 2 1 1 . . 1 2 Traps | -11 -10 -10 -10 -9 -8 -7 -7 -7 -7 -7 -6 -6 -6 -6 -6 -5 -5 -5 -5 -5 -4 -4 ------- Run | Scr Mat Min Exi Min Mat Fac Low Low Zio Dee Pro Fac Low Low Dat Pro Fac Upp Upp Zhi Pro Fac Traps Triggered 14 | . 3 . . . . 1 . . 5 . . . . . . . 1 . . . 4 . Indirectly 10 | . . . . . . . . . 5 . . . . . . . 1 . . . 4 . Trap Hack Attempts . | . . . . . . . . . . . . . . . . . . . . . . . Triggered . | . . . . . . . . . . . . . . . . . . . . . . . Disarmed 1 | . . . . . . . . . . . . 1 . . . . . . . . . . Reprogrammed . | . . . . . . . . . . . . . . . . . . . . . . . Reused 6 | . . . . . . . . . 1 . . . . . . . . . . . 5 . Traps Extracted . | . . . . . . . . . . . . . . . . . . . . . . . Installed 9 | . . . . . . . . . 3 . . . . . . . . . . . 6 . Triggered 13 | . . . . . . . 1 . . . . . 3 1 . . . . 2 . 6 . Machines | -11 -10 -10 -10 -9 -8 -7 -7 -7 -7 -7 -6 -6 -6 -6 -6 -5 -5 -5 -5 -5 -4 -4 ---------- Run | Scr Mat Min Exi Min Mat Fac Low Low Zio Dee Pro Fac Low Low Dat Pro Fac Upp Upp Zhi Pro Fac Machines Disabled 78 | . 2 1 . . . 4 . 1 2 2 6 8 2 3 . . 33 2 . . 3 9 Max in Single Turn 4 | . 1 1 . . . . . 1 . 1 1 4 . 1 . . 4 1 . . 2 2 Garrison Access 1 | . . . . . . . . . . . . . . . . . 1 . . . . . Machines Sabotaged . | . . . . . . . . . . . . . . . . . . . . . . . Garrisons Compromised . | . . . . . . . . . . . . . . . . . . . . . . . Overloaded Fab Kills . | . . . . . . . . . . . . . . . . . . . . . . . Fab Network Shutdowns . | . . . . . . . . . . . . . . . . . . . . . . . Hacking | -11 -10 -10 -10 -9 -8 -7 -7 -7 -7 -7 -6 -6 -6 -6 -6 -5 -5 -5 -5 -5 -4 -4 --------- Run | Scr Mat Min Exi Min Mat Fac Low Low Zio Dee Pro Fac Low Low Dat Pro Fac Upp Upp Zhi Pro Fac Machines Accessed 53 | . 8 . 5 1 2 4 . . 1 . . 5 2 1 4 . 7 . 1 9 . 3 Terminals 18 | . 7 . . . 1 1 . . . . . 4 . . . . 3 . . . . 2 Fabricators 3 | . . . . . . 1 . . . . . . . . . . 1 . . . . 1 Repair Stations 1 | . . . . . . . . . . . . . . . . . 1 . . . . . Recycling Units 3 | . 1 . . . . 1 . . . . . 1 . . . . . . . . . . Scanalyzers 1 | . . . . . . . . . . . . . . . . . 1 . . . . . Garrison Access 3 | . . . . . 1 1 . . . . . . . . . . 1 . . . . . Total Hacks 222 | . 21 . 49 1 4 7 . . 4 . . 27 8 1 29 . 12 . 1 48 . 10 Successful 180 | . 10 . 49 1 3 2 . . 4 . . 17 8 1 29 . 3 . 1 48 . 4 Failed 40 | . 10 . . . 1 5 . . . . . 9 . . . . 9 . . . . 6 Catastrophic 7 | . 1 . . . . 3 . . . . . . . . . . 2 . . . . 1 Database Lockouts 3 | . 2 . . . . . . . . . . 1 . . . . . . . . . . Manual 58 | . 13 . 1 . 3 6 . . 5 . . 16 . . . . 6 . . . . 8 Terminals 63 | . 20 . . . 2 3 . . . . . 26 . . . . 6 . . . . 6 Fabricators 8 | . . . . . . 2 . . . . . . . . . . 2 . . . . 4 Repair Stations 2 | . . . . . . . . . . . . . . . . . 2 . . . . . Recycling Units 3 | . 1 . . . . 1 . . . . . 1 . . . . . . . . . . Scanalyzers 1 | . . . . . . . . . . . . . . . . . 1 . . . . . Garrison Access 4 | . . . . . 2 1 . . . . . . . . . . 1 . . . . . Terminal Hacks 162 | . 6 . 49 1 2 . . . 4 . . 13 8 1 29 . . . 1 48 . . Record 102 | . . . 48 . . . . . . . . . 7 . 11 . . . . 36 . . Part Schematic 17 | . . . . . . . . . 4 . . 1 . . 8 . . . . 4 . . Robot Schematic 8 | . . . . . 1 . . . . . . . . . 7 . . . . . . . Robot Analysis 6 | . 2 . . . . . . . . . . . . . . . . . . 4 . . Prototype ID Bank 9 | . . . . . 1 . . . . . . 1 . . 3 . . . . 4 . . Open Door 4 | . . . . 1 . . . . . . . . 1 1 . . . . 1 . . . Alert Level 3 | . 1 . . . . . . . . . . 2 . . . . . . . . . . Unreport Threat 2 | . . . . . . . . . . . . 2 . . . . . . . . . . Locate Traps 3 | . 2 . . . . . . . . . . 1 . . . . . . . . . . Disarm Traps 2 | . . . . . . . . . . . . 2 . . . . . . . . . . Transport Status 1 | . . . . . . . . . . . . 1 . . . . . . . . . . Recall Investigation 2 | . 1 . . . . . . . . . . 1 . . . . . . . . . . Recall Extermination 1 | . . . . . . . . . . . . 1 . . . . . . . . . . Hauler Manifests 1 | . . . . . . . . . . . . 1 . . . . . . . . . . EX-Prototype ID Bank 1 | . . . 1 . . . . . . . . . . . . . . . . . . . Fabricator Hacks 3 | . . . . . . . . . . . . . . . . . 2 . . . . 1 Load Schematic 2 | . . . . . . . . . . . . . . . . . 1 . . . . 1 Build 1 | . . . . . . . . . . . . . . . . . 1 . . . . . Repair Station Hacks . | . . . . . . . . . . . . . . . . . . . . . . . Recycling Unit Hacks . | . . . . . . . . . . . . . . . . . . . . . . . Scanalyzer . | . . . . . . . . . . . . . . . . . . . . . . . Garrison Access Hacks . | . . . . . . . . . . . . . . . . . . . . . . . Unauthorized Hacks 45 | . 9 . . . 3 8 . . . . . 9 . . . . 7 . . . . 9 Terminals 9 | . 3 . . . . . . . . . . 4 . . . . 1 . . . . 1 Track 2 | . 1 . . . . . . . . . . 1 . . . . . . . . . . Botnet 5 | . 2 . . . . . . . . . . 2 . . . . . . . . . 1 Disrupt 1 | . . . . . . . . . . . . . . . . . 1 . . . . . Operators 1 | . . . . . . . . . . . . 1 . . . . . . . . . . Fabricators 4 | . . . . . . 2 . . . . . . . . . . . . . . . 2 Report 2 | . . . . . . 1 . . . . . . . . . . . . . . . 1 Haulers 2 | . . . . . . 1 . . . . . . . . . . . . . . . 1 Repair Stations . | . . . . . . . . . . . . . . . . . . . . . . . Recycling Units 1 | . 1 . . . . . . . . . . . . . . . . . . . . . Tunnel 1 | . 1 . . . . . . . . . . . . . . . . . . . . . Scanalyzers . | . . . . . . . . . . . . . . . . . . . . . . . Garrison Access 1 | . . . . . 1 . . . . . . . . . . . . . . . . . Reprogram 1 | . . . . . 1 . . . . . . . . . . . . . . . . . Data Cores Recovered . | . . . . . . . . . . . . . . . . . . . . . . . Used . | . . . . . . . . . . . . . . . . . . . . . . . Hacking Detections 26 | . 6 . . . 2 3 . . . . . 5 . . . . 7 . . . . 3 Full Trace Events 3 | . 2 . . . . 1 . . . . . . . . . . . . . . . . Feedback Events . | . . . . . . . . . . . . . . . . . . . . . . . Feedback Blocked . | . . . . . . . . . . . . . . . . . . . . . . . Robot Schematics Acquired 8 | . . . . . 1 . . . . . . . . . 7 . . . . . . . Robots Built . | . . . . . . . . . . . . . . . . . . . . . . . Matter . | . . . . . . . . . . . . . . . . . . . . . . . Time . | . . . . . . . . . . . . . . . . . . . . . . . Total Robot Build Rating . | . . . . . . . . . . . . . . . . . . . . . . . Part Schematics Acquired 17 | . . . . . . . . . 4 . . 1 . . 8 . . . . 4 . . Parts Built 1 | . . . . . . . . . . . . . . . . . 1 . . . . . Matter 318 | . . . . . . . . . . . . . . . . . 318 . . . . . Time 169 | . . . . . . . . . . . . . . . . . 169 . . . . . Total Part Build Rating 6 | . . . . . . . . . . . . . . . . . 6 . . . . . Parts Repaired . | . . . . . . . . . . . . . . . . . . . . . . . Time . | . . . . . . . . . . . . . . . . . . . . . . . Parts Recycled . | . . . . . . . . . . . . . . . . . . . . . . . Recycled Matter . | . . . . . . . . . . . . . . . . . . . . . . . Retrieved Matter . | . . . . . . . . . . . . . . . . . . . . . . . Retrieved Components . | . . . . . . . . . . . . . . . . . . . . . . . Parts Scanalyzed . | . . . . . . . . . . . . . . . . . . . . . . . Part Schematics Acquired . | . . . . . . . . . . . . . . . . . . . . . . . Parts Damaged . | . . . . . . . . . . . . . . . . . . . . . . . Bothacking | -11 -10 -10 -10 -9 -8 -7 -7 -7 -7 -7 -6 -6 -6 -6 -6 -5 -5 -5 -5 -5 -4 -4 ------------ Run | Scr Mat Min Exi Min Mat Fac Low Low Zio Dee Pro Fac Low Low Dat Pro Fac Upp Upp Zhi Pro Fac Used RIF Installer . | . . . . . . . . . . . . . . . . . . . . . . . Robots Hacked 19 | . . . 4 1 . 1 . . 2 6 . . . . 1 . . . 1 3 . . Non-combat 4 | . . . 3 . . 1 . . . . . . . . . . . . . . . . Combat 15 | . . . 1 1 . . . . 2 6 . . . . 1 . . . 1 3 . . Robot Hacks Applied 19 | . . . 4 1 . 1 . . 2 6 . . . . 1 . . . 1 3 . . parse_system 19 | . . . 4 1 . 1 . . 2 6 . . . . 1 . . . 1 3 . . Relay Couplers Released 4 | . . . . . . . . . . . . . . . . . 1 . . . . 3 Machine Destruction 1 | . . . . . . . . . . . . . . . . . 1 . . . . . Programmers 3 | . . . . . . . . . . . . . . . . . . . . . . 3 Robots Rewired 8 | . . . . . . . . 2 . . 2 . . 1 . . 1 2 . . . . Allies Hacked . | . . . . . . . . . . . . . . . . . . . . . . . Hacks Repelled . | . . . . . . . . . . . . . . . . . . . . . . . Allies | -11 -10 -10 -10 -9 -8 -7 -7 -7 -7 -7 -6 -6 -6 -6 -6 -5 -5 -5 -5 -5 -4 -4 -------- Run | Scr Mat Min Exi Min Mat Fac Low Low Zio Dee Pro Fac Low Low Dat Pro Fac Upp Upp Zhi Pro Fac Total Allies 12 | . 1 . . . . . . 2 2 . 2 . . 1 . 1 1 2 . . . . Largest Group 3 | . 1 1 1 1 1 1 1 3 3 3 3 3 1 2 1 2 2 3 2 1 1 1 Highest-Rated Group 302 | . 57 57 75 82 93 105 109 152 299 302 196 204 138 161 117 217 224 196 168 153 153 176 Highest-Rated Ally 176 | . 57 57 75 82 93 105 109 109 112 120 128 138 138 138 117 123 137 137 142 153 153 176 Total Orders 84 | . . . . . . . . . . . 2 . . . . . . . 24 . 54 4 STAY 1 | . . . . . . . . . . . . . . . . . . . 1 . . . GOTO 36 | . . . . . . . . . . . 1 . . . . . . . 9 . 26 . ROAM 1 | . . . . . . . . . . . . . . . . . . . 1 . . . FOLLOW 5 | . . . . . . . . . . . 1 . . . . . . . . . 4 . RETURN 41 | . . . . . . . . . . . . . . . . . . . 13 . 24 4 Ally Attacks 932 | . 56 14 . . 13 31 14 40 99 95 30 8 5 29 . 40 62 10 107 . 158 121 Total Damage 33631 | . 550 359 . . 386 833 403 961 2530 3196 1889 1147 2614 3897 . 944 4204 374 2056 . 2743 4545 Kills 264 | . 13 4 . . 7 11 3 8 31 16 14 8 17 20 . 10 32 4 19 . 19 28 Allies Corrupted . | . . . . . . . . . . . . . . . . . . . . . . . Allies Melted . | . . . . . . . . . . . . . . . . . . . . . . . Intel | -11 -10 -10 -10 -9 -8 -7 -7 -7 -7 -7 -6 -6 -6 -6 -6 -5 -5 -5 -5 -5 -4 -4 ------- Run | Scr Mat Min Exi Min Mat Fac Low Low Zio Dee Pro Fac Low Low Dat Pro Fac Upp Upp Zhi Pro Fac Robot Analysis Total 6 | . 2 . . . . . . . . . . . . . . . . . . 4 . . Derelict Logs Recovered 21 | . . 1 . 2 . . 2 1 1 . 2 . 2 2 . 2 . 1 2 . 3 . Drone Launches 67 | . . . . . . . . . . . . . . . . . . . 21 . 38 8 Drone Recoveries 65 | . . . . . . . . . . . . . . . . . . . 21 . 38 6 Decoded 0b10 Intel 56 | . . . . . . . . . . . . 11 . . . . 5 . . . . 40 Traps 22 | . . . . . . . . . . . . 6 . . . . . . . . . 16 Emergency Access 2 | . . . . . . . . . . . . 2 . . . . . . . . . . Garrisons 2 | . . . . . . . . . . . . . . . . . 1 . . . . 1 Patrols 12 | . . . . . . . . . . . . 2 . . . . 3 . . . . 7 Reinforcements 4 | . . . . . . . . . . . . . . . . . . . . . . 4 Guards 14 | . . . . . . . . . . . . 1 . . . . 1 . . . . 12 Exploration | -11 -10 -10 -10 -9 -8 -7 -7 -7 -7 -7 -6 -6 -6 -6 -6 -5 -5 -5 -5 -5 -4 -4 ------------- Run | Scr Mat Min Exi Min Mat Fac Low Low Zio Dee Pro Fac Low Low Dat Pro Fac Upp Upp Zhi Pro Fac Turns Passed 33246 | 85 1194 1182 1561 1272 716 1610 1282 1450 3107 2841 2389 1155 1656 1920 151 1303 1460 1630 1413 266 2032 1571 Spaces Moved 18639 | 40 591 557 888 608 314 860 837 968 1683 1354 1386 654 1009 1137 91 735 809 1106 927 175 1304 606 Core 3 | 3 . . . . . . . . . . . . . . . . . . . . . . Treads 3504 | 37 591 557 888 608 314 509 . . . . . . . . . . . . . . . . Legs . | . . . . . . . . . . . . . . . . . . . . . . . Wheels 15132 | . . . . . . 351 837 968 1683 1354 1386 654 1009 1137 91 735 809 1106 927 175 1304 606 Hover . | . . . . . . . . . . . . . . . . . . . . . . . Flight . | . . . . . . . . . . . . . . . . . . . . . . . Fastest Speed 50 | 50 160 180 160 200 192 130 140 140 140 140 150 150 150 160 150 160 140 130 130 130 140 120 Average Speed 153 | 151 163 180 170 200 197 169 140 142 148 145 150 155 158 160 157 160 146 139 139 139 140 132 Slowest Speed 210 | 160 180 180 200 200 200 192 140 150 150 210 150 160 160 160 160 160 160 140 140 140 160 145 Overloaded Moves . | . . . . . . . . . . . . . . . . . . . . . . . Propulsion Burnouts . | . . . . . . . . . . . . . . . . . . . . . . . Robots Hopped . | . . . . . . . . . . . . . . . . . . . . . . . Cave-ins Triggered 1 | . . . . . . . . . . . . 1 . . . . . . . . . . Exploration Rate (%) 70 | 3 93 83 93 73 22 19 95 99 90 89 96 18 98 99 70 83 23 99 97 62 99 14 Regions Visited 22 Branch Regions 16 Pre-discovered Areas 17 | . 1 1 1 3 . . . 1 1 . . . . 1 1 1 . 1 1 3 1 . Known Exits Taken 10 | . . . . . . 1 1 . . . 1 1 . . . 1 1 1 1 1 1 . Unknown Exits Taken 12 | 1 1 1 1 1 1 . . 1 1 1 . . 1 1 1 . . . . . . . Scrap Searched 19 | . . . . . . . 2 3 . . 4 . . 1 . 2 . 2 4 . 1 . Spaces Dug 115 | . . 16 . . 6 . 38 . 1 5 . 4 2 3 . 8 19 . . . . 13 Terrain Destroyed 581 | . . 16 . . 6 . 83 52 4 5 4 36 4 34 . 20 63 2 9 . 46 197 Melee . | . . . . . . . . . . . . . . . . . . . . . . . Projectile 88 | . . . . . . . 6 . 4 5 . 9 4 4 . . 14 . . . . 42 AOE 493 | . . 16 . . 6 . 77 52 . . 4 27 . 30 . 20 49 2 9 . 46 155 Actions | -11 -10 -10 -10 -9 -8 -7 -7 -7 -7 -7 -6 -6 -6 -6 -6 -5 -5 -5 -5 -5 -4 -4 --------- Run | Scr Mat Min Exi Min Mat Fac Low Low Zio Dee Pro Fac Low Low Dat Pro Fac Upp Upp Zhi Pro Fac Total 21960 | 55 719 645 927 649 403 973 903 1014 2112 2129 1633 751 1061 1191 98 816 971 1168 1029 198 1487 1028 Wait 1665 | . 30 17 . 6 36 23 3 2 304 654 168 10 28 5 . 35 36 1 71 3 144 89 Move 18617 | 39 590 556 887 607 313 859 836 967 1682 1353 1385 653 1008 1136 90 734 808 1105 926 174 1303 606 Hop . | . . . . . . . . . . . . . . . . . . . . . . . Pick Up 204 | 6 17 6 22 8 8 17 7 5 8 6 9 11 5 4 . 3 12 3 3 4 12 28 Fast Attach 103 | 6 5 1 1 . 9 12 . 2 4 14 4 6 2 1 2 2 6 8 5 4 . 9 Attach 61 | . 1 1 . . 2 3 . 2 3 1 2 10 5 2 1 . 4 1 1 . . 22 Detach 26 | . . . . . 3 2 . . 1 1 . 8 1 1 1 . . 1 . . . 7 Swap 219 | . 4 2 3 6 6 3 12 7 9 11 15 7 . 9 . 22 34 14 10 2 2 41 Drop 229 | . 10 6 6 9 17 16 7 7 9 20 14 12 5 3 2 4 15 11 8 7 12 29 Fire 779 | 4 60 51 . 7 9 33 38 22 89 68 36 34 7 27 2 16 56 7 5 4 8 196 Melee 11 | . . . 8 1 . 2 . . . . . . . . . . . . . . . . Ram . | . . . . . . . . . . . . . . . . . . . . . . . Kick . | . . . . . . . . . . . . . . . . . . . . . . . Crush 12 | . 2 4 . 5 . 1 . . . . . . . . . . . . . . . . Escape Stasis 2 | . . . . . . 2 . . . . . . . . . . . . . . . . Rewire 22 | . . 1 . . . . . . . 1 . . . 3 . . . 17 . . . . Trap 9 | . . . . . . . . . 3 . . . . . . . . . . . 6 . Miscellaneous 1 | . . . . . . . . . . . . . . . . . . . . . . 1 Route ------- -11/Scrapyard -10/Materials (discovered 4 exits: [*Mat x3] / [*Min]) -10/Mines (discovered 2 exits: [*Mat] / *Exi) -10/Exiles -9/Mines (discovered 2 exits: *Mat x2) -8/Materials -7/Factory -7/Lower Caves -7/Lower Caves (discovered 2 exits: *Fac / *Zio) -7/Zion (discovered 2 exits: [*Dee] / [*Pro]) -7/Deep Caves -6/Proximity Caves -6/Factory (discovered 3 exits: *Low / Ext x2) -6/Lower Caves (discovered 2 exits: *Low / *Dat) -6/Lower Caves (discovered 2 exits: *Fac / *Dat) -6/Data Miner -5/Proximity Caves -5/Factory (discovered 2 exits: *Fac / *Upp) -5/Upper Caves -5/Upper Caves (discovered 2 exits: *Fac / *Zhi) -5/Zhirov -4/Proximity Caves -4/Factory History --------- Turn | Location | Event 13 | -11/Scrapyard | Discovered new exit (range 16) 86 | -11/Scrapyard | Entered Materials 312 | -10/Materials | Build established: Mutant 410 | -10/Materials | Discovered new exit (range 3) 568 | -10/Materials | Discovered new exit (range 15) 739 | -10/Materials | Central database locked down 966 | -10/Materials | Core integrity fell below 50% 1120 | -10/Materials | Discovered new exit (range 8) 1213 | -10/Materials | Discovered new exit (range 8) 1280 | -10/Materials | Entered Mines 1280 | -10/Mines | Accompanied by 1 ally 1444 | -10/Mines | Deemed a non-threat by the Exiles lab entrance 1444 | -10/Mines | Discovered new exit (range 5) 1577 | -10/Mines | Found a hidden stash of uninstalled traps 1773 | -10/Mines | Discovered new exit (range 6) 1776 | -10/Mines | Assembled infested the area 1890 | -10/Mines | Met 8R-AWN 2029 | -10/Mines | Learned location of Zion (-7) 2462 | -10/Mines | Entered Exiles 2462 | -10/Exiles | Accompanied by 1 ally 2507 | -10/Exiles | Welcomed by 8R-AWN 2538 | -10/Exiles | Met EX-HEX 2630 | -10/Exiles | Met EX-BIN 2784 | -10/Exiles | Met EX-DEC 2942 | -10/Exiles | Visited The Gauntlet 3179 | -10/Exiles | Aligned with FarCom system 3181 | -10/Exiles | Given EX-Vault access code 3218 | -10/Exiles | Opened EX-Vault 3229 | -10/Exiles | Found Latent Energy Streamer 3264 | -10/Exiles | Warned to stay clear of 0b10 Research branches 3397 | -10/Exiles | Learned about 8R-AWN's background 3841 | -10/Exiles | Build established: Hauler-Mutant 3998 | -10/Exiles | Discovered new exit (range 14) 4023 | -10/Exiles | Left Exiles lab with Potential Leg 4023 | -10/Exiles | Entered Mines 4023 | -9/Mines | Accompanied by 1 ally 4093 | -9/Mines | Discovered new exit (range 4) 4096 | -9/Mines | Learned location of Storage (-7) 4545 | -9/Mines | Discovered new exit (range 14) 5132 | -9/Mines | Met a Derelict shopkeep closing up shop 5137 | -9/Mines | Assisted by bots powering up and referring to "LRC-V3" 5214 | -9/Mines | Destroyed YI-UF0 5232 | -9/Mines | Found YI-UF0's Bottomless Matter Pit 5240 | -9/Mines | Found YI-UF0's Doublenader 5295 | -9/Mines | Entered Materials 5295 | -8/Materials | Accompanied by 1 ally 5295 | -8/Materials | Evolved 4 slots: Utility x4 5545 | -8/Materials | Discovered new exit (range 8) 5703 | -8/Materials | Build established: Scavenger-Mutant 6011 | -8/Materials | Entered Factory 6011 | -7/Factory | Accompanied by 1 ally 6011 | -7/Factory | Evolved 2 slots: Utility x2 6528 | -7/Factory | Build established: Hauler-Mutant 7432 | -7/Factory | Discovered new exit (range 11) 7454 | -7/Factory | Identified exit to Lower Caves 7621 | -7/Factory | Entered Lower Caves 7621 | -7/Lower Caves | Accompanied by 1 ally 7904 | -7/Lower Caves | Attracted the attention of an 0b10 checkpoint 7976 | -7/Lower Caves | Learned Factory stockpile data 7982 | -7/Lower Caves | Encountered a Warlord checkpoint 8139 | -7/Lower Caves | Learned Factory interactive machine intel 8207 | -7/Lower Caves | Build established: Hauler-Skirmisher 8412 | -7/Lower Caves | Spotted B-75 Beast 8539 | -7/Lower Caves | Build established: Hauler-Mutant 8572 | -7/Lower Caves | Discovered new exit (range 4) 8578 | -7/Lower Caves | Identified exit to Lower Caves 8903 | -7/Lower Caves | Entered another Lower Caves area 8903 | -7/Lower Caves | Accompanied by 1 ally 9002 | -7/Lower Caves | Discovered new exit (range 16) 9052 | -7/Lower Caves | Identified exit to Factory 9492 | -7/Lower Caves | Build established: Hauler-Skirmisher 9834 | -7/Lower Caves | Build established: Hauler-Mutant 10007 | -7/Lower Caves | Attracted the attention of an 0b10 outpost 10088 | -7/Lower Caves | Discovered new exit (range 24) 10353 | -7/Lower Caves | Entered Zion 10353 | -7/Zion | Accompanied by 1 ally 10398 | -7/Zion | System corruption cleaned by Quarantine Array 10513 | -7/Zion | Discovered new exit (range 13) 10589 | -7/Zion | Given A8's code to call for help 10854 | -7/Zion | Learned 4 Factory zone layouts 10959 | -7/Zion | Discovered new exit (range 21) 11135 | -7/Zion | Rebuked by Imprinter 11543 | -7/Zion | Learned Factory repair station intel 11556 | -7/Zion | Learned location of Extension (-6) 12340 | -7/Zion | Attacked by Zionites 12390 | -7/Zion | 7V-RTL came to Zion's defense 12428 | -7/Zion | Allies destroyed 7V-RTL 12791 | -7/Zion | Destroyed Imprinter 12800 | -7/Zion | Extracted access codes from Imprinter's data core 12954 | -7/Zion | Core integrity fell below 50% 13390 | -7/Zion | Enhanced Grunt warped into view, answering call for help 13391 | -7/Zion | Enhanced Grunt warped into view, answering call for help 13397 | -7/Zion | Opened final containment barrier to the Deep Caves 13420 | -7/Zion | Saw the warning signs outside the Deep Caves entrance 13460 | -7/Zion | Entered Deep Caves 13460 | -7/Deep Caves | Accompanied by 3 allies 13667 | -7/Deep Caves | Z-Facility disabled 14225 | -7/Deep Caves | Discovered new exit (range 6) 14352 | -7/Deep Caves | Found Prototype Protection 14352 | -7/Deep Caves | Identified Zio. Weapon Casing 14520 | -7/Deep Caves | Spotted as-95376 14532 | -7/Deep Caves | Destroyed as-95376 14562 | -7/Deep Caves | Triggered Deep Caves wall 14565 | -7/Deep Caves | Exposed GOLEM chamber 14571 | -7/Deep Caves | Core integrity fell below 20% 14573 | -7/Deep Caves | Spotted AS-49079 14583 | -7/Deep Caves | Spotted AS-05065 14592 | -7/Deep Caves | Allies destroyed AS-49079 14598 | -7/Deep Caves | Destroyed AS-05065 14604 | -7/Deep Caves | Destroyed 35 combat bots 14605 | -7/Deep Caves | Triggered Deep Caves wall 16301 | -7/Deep Caves | Entered Proximity Caves 16301 | -6/Proximity Caves | Accompanied by 1 ally 16321 | -6/Proximity Caves | Learned 4 Factory zone layouts 16651 | -6/Proximity Caves | Learned Factory security intel 17097 | -6/Proximity Caves | Build established: Hauler-Skirmisher 17742 | -6/Proximity Caves | Build established: Hauler-Mutant 17854 | -6/Proximity Caves | Discovered exit to Factory (range 15) 18149 | -6/Proximity Caves | Build established: Hauler-Skirmisher 18233 | -6/Proximity Caves | Found Alien Artifact 18690 | -6/Proximity Caves | Entered Factory 18690 | -6/Factory | Accompanied by 3 allies 18690 | -6/Factory | Evolved 2 slots: Power x1, Utility x1 18691 | -6/Factory | Identified exit to Lower Caves 18691 | -6/Factory | Identified exit to Extension 18694 | -6/Factory | Loaded intel: 48 interactive machine locations 18695 | -6/Factory | Loaded intel: 6 repair station locations 18736 | -6/Factory | Discovered exit to Extension (range 20) 18910 | -6/Factory | Central database locked down 19035 | -6/Factory | Crushed by falling debris 19375 | -6/Factory | Build established: Hauler-Mutant 19845 | -6/Factory | Entered Lower Caves 19845 | -6/Lower Caves | Accompanied by 1 ally 19902 | -6/Lower Caves | A Derelict revealed a hidden shortcut to meet someone special 20117 | -6/Lower Caves | Learned Factory trap positions 20117 | -6/Lower Caves | Learned Research trap positions 20117 | -6/Lower Caves | Learned Armory garrison access intel 20168 | -6/Lower Caves | Build established: Hauler-Skirmisher 20253 | -6/Lower Caves | Found Alien Artifact 20253 | -6/Lower Caves | Identified Core Expander 20253 | -6/Lower Caves | Installed Core Expander, added new Utility slot 20506 | -6/Lower Caves | Discovered new exit (range 10) 20512 | -6/Lower Caves | Ambushed by wild Derelicts 20658 | -6/Lower Caves | Learned Factory emergency access door positions 20667 | -6/Lower Caves | Attracted the attention of an 0b10 outpost 20726 | -6/Lower Caves | Build established: Hauler-Mutant 20905 | -6/Lower Caves | Encountered a Warlord checkpoint 20917 | -6/Lower Caves | Learned Factory emergency access door positions 21501 | -6/Lower Caves | Entered another Lower Caves area 21501 | -6/Lower Caves | Accompanied by 1 ally 21514 | -6/Lower Caves | Learned Factory stockpile data 21567 | -6/Lower Caves | Attracted the attention of an 0b10 outpost 21609 | -6/Lower Caves | Discovered new exit (range 9) 21619 | -6/Lower Caves | Rewired Cogmind 22154 | -6/Lower Caves | Attacked by a delusional Derelict stockpiling Unaware 22201 | -6/Lower Caves | Discovered new exit (range 10) 23421 | -6/Lower Caves | Entered Data Miner 23421 | -6/Data Miner | Accompanied by 1 ally 23422 | -6/Data Miner | Discovered new exit (range 6) 23451 | -6/Data Miner | Met Data Miner 23487 | -6/Data Miner | Learned location of Section 7 (-2) 23487 | -6/Data Miner | Acquired the access code to Warlord's prototype stash 23513 | -6/Data Miner | Received God Mode back door access code from Data Miner 23572 | -6/Data Miner | Entered Proximity Caves 23572 | -5/Proximity Caves | Accompanied by 1 ally 23622 | -5/Proximity Caves | Learned location of Armory (-3) 23698 | -5/Proximity Caves | Escorted by Enhanced Grunt 24342 | -5/Proximity Caves | Attracted the attention of an 0b10 checkpoint 24850 | -5/Proximity Caves | Discovered new exit (range 14) 24873 | -5/Proximity Caves | Identified exit to Factory 24875 | -5/Proximity Caves | Entered Factory 24875 | -5/Factory | Accompanied by 2 allies 24875 | -5/Factory | Evolved 2 slots: Utility x2 24876 | -5/Factory | Identified exit to Upper Caves 24877 | -5/Factory | Loaded intel: 89 trap records 24968 | -5/Factory | Discovered new exit (range 11) 25068 | -5/Factory | Identified exit to Factory 25185 | -5/Factory | Fabricated Combat Drone Bay? 25963 | -5/Factory | Incoming assault squad redirected 26075 | -5/Factory | First assault squad dispatched 26335 | -5/Factory | Entered Upper Caves 26335 | -5/Upper Caves | Accompanied by 2 allies 26584 | -5/Upper Caves | Attracted the attention of an 0b10 checkpoint 27095 | -5/Upper Caves | Attracted the attention of an 0b10 outpost 27155 | -5/Upper Caves | Discovered new exit (range 23) 27278 | -5/Upper Caves | Identified exit to Upper Caves 27419 | -5/Upper Caves | Build established: Hauler-Skirmisher 27497 | -5/Upper Caves | Encountered a Warlord checkpoint 27922 | -5/Upper Caves | Rewired Cogmind 27932 | -5/Upper Caves | Rewired Cogmind 27965 | -5/Upper Caves | Entered another Upper Caves area 27965 | -5/Upper Caves | Accompanied by 3 allies 28095 | -5/Upper Caves | Discovered exit to Factory (range 23) 28283 | -5/Upper Caves | Learned 4 Factory zone layouts 28641 | -5/Upper Caves | Discovered new exit (range 13) 28656 | -5/Upper Caves | Encountered a Warlord checkpoint 28675 | -5/Upper Caves | Identified exit to Zhirov 29378 | -5/Upper Caves | Entered Zhirov 29378 | -5/Zhirov | Accompanied by 1 ally 29378 | -5/Zhirov | Discovered new exit (range 3) 29380 | -5/Zhirov | Identified exit to Proximity Caves 29404 | -5/Zhirov | Met Zhirov 29437 | -5/Zhirov | Learned location of Quarantine (-3) 29437 | -5/Zhirov | Learned location of Testing (-2) 29437 | -5/Zhirov | Learned location of Command (-1) 29464 | -5/Zhirov | Zhirov requested help retrieving the SGEMP Prototype 29485 | -5/Zhirov | Found Alien Artifact 29485 | -5/Zhirov | Identified Integrated Dissipator 29485 | -5/Zhirov | Installed Integrated Dissipator, increased core heat dissipation (+2%) 29530 | -5/Zhirov | Found Alien Artifact 29644 | -5/Zhirov | Entered Proximity Caves 29644 | -4/Proximity Caves | Accompanied by 1 ally 29843 | -4/Proximity Caves | Learned 4 Research zone layouts 30186 | -4/Proximity Caves | Discovered exit to Factory (range 7) 31676 | -4/Proximity Caves | Entered Factory 31676 | -4/Factory | Accompanied by 1 ally 31676 | -4/Factory | Evolved 2 slots: Power x1, Propulsion x1 32137 | -4/Factory | Found Unknown Device 32137 | -4/Factory | Identified Quantum Capacitor 32269 | -4/Factory | Spotted B-86 Titan 32322 | -4/Factory | Destroyed B-86 Titan 32468 | -4/Factory | First assault squad dispatched 32491 | -4/Factory | Incoming assault squad redirected 32514 | -4/Factory | Core integrity fell below 50% 32546 | -4/Factory | Destroyed 8 combat bots 32580 | -4/Factory | Build established: Hauler-Mutant 33000 | -4/Factory | Core integrity fell below 20% 33089 | -4/Factory | Destroyed 11 combat bots 33175 | -4/Factory | High security lockdown imminent 33247 | -4/Factory | Core destroyed Last Messages --------------- 33231_ The unstable cave ceiling collapses. 33234_ Plasma Rifle fried. 33234_ Lgt. Antimatter Reactor fried. 33234_ Adv. Heat Sink fried. 33234_ G-67 Veteran destroyed. 33238_ Combat Drone released from Combat Drone Bay. 33238_ The unstable cave ceiling collapses. 33239_ Combat Drone released from Combat Drone Bay. 33240_ ALERT: Performing unscheduled system reset. 33244_ Slug penetrates Player 2. 33245_ Chain reaction triggered in Lgt. Antimatter Reactor. 33246_ Adv. Myomer Leg blown off. 33246_ Lgt. Antimatter Reactor blown off. 33246_ Myomer Leg blown off. 33246_ Adv. Particle Charger blown off. 33246_ E-15 Imp destroyed. 33247_ Fusion Modulator explodes. 33247_ P-70 Sage destroyed. 33247_ Fusion Modulator explodes. 33247_ P-70 Sage destroyed. Map ----- +----------------------------------------------------+ | # """ """ + ######!%!*! == !%* # ""?""? | | / """ """ # # #%!%!! = # """""? | | # # # #!!%=!% # """""" | | ########### # #/!==!* # | | # # =!== # ? | | # #!*% ######+# | | # + =*=%! ## ^ | | # #%############# ## ? | | # #=####### ##### ## " | | ############### #k############# ## ? " | | # #######/#############? ## ? ? | | # #### %!%=%=%! # # ? ?? | | # "" """ #### ! ! * # ? #####?## | | [ # " "" #### %! # ### ? ?? | | % " " #### % # ### ?? | | # #### # ### ???? | | *%# #### + ### """? | | =% # g ### # ### ?"" | | %*# =g # ### ?""? | | # g %! =% # ? #?# ? ? | | # [ @ * # ## ###### ?## | | # * =%%% # ###? ??? | | ###### ;;; % ?## ? ? | | ######??######## = # # ### ?? | | ????####?####### n # # #??###????? | | ???##?########### @n # # ####?###??? | | ? ???###?##?#### # # ######?#?## | | ?? ?#?########### #+??#????###? | | ?#?########### # # ? ??? ? | | ?? ####?######### # k# ? ????? ? | | ?? ?????##?#?#### # ## +## # ""????? | | ??? ?????#?? ? # ??"???? | | ? ????#?????? ?^ +? ?????"??? | | ?+???#???? ? "?"""" #?? ?"?????? | | ???????#??##+#########+## """??" #???? ??????? | | ?+??????? ? ??????? ? ## ""???? #? ????????? | | ???????? ?? "?????"??? ## """?"" | # ?? ?""?"??? | | ??????????????? ????"??## ^????? #?????"?????? | | ????????? ???????#"????# ^^??? #??? ???????? | | ??????????" ????????? ?? ??????? #?? ??? ????? | | ???????????????????????? ????? #???????????? | | ???????????????????????? ! ????? ??????????????? | | ??????????????? ?#??? ?# ? ???????#???????????? | | ???????????????????????# ?????????????????????? | | ???????????????????+???# ????? ???????????????? | | ?????????????????????? ?? ???????????????????? | | ???????????????????????? ??????????????????????? | | ?????????????????????????????????????????????????? | | ?????????????????????????????????????????????????? | | ?????????????????????????????????????????????????? | +----------------------------------------------------+ Best States ------------- Heat Dissipation 90 Energy Generation 48 Energy Capacity 1300 Matter Stores 300 Matter Capacity 300 Sight Range 16 Robot Scan Range 22 Terrain Scan Range 24 Terrain Scan Density 210 Jamming Range 16 Additional Mass Support 9 Armor Coverage 600 Weapon Shielding 100 Evasion (%) 40 Targeting Accuracy 6 Recoil Reduction 2 Particle Charging 30 Item Schematics ----------------- Hvy. Riot Gun | -7/Zion | Free Battle Rifle | -7/Zion | Free Slug Cannon | -7/Zion | Free Flamer | -7/Zion | Free Imp. Heavy Armor Plating | -6/Factory | Hacked Combat Drone Bay | -6/Data Miner | Free Lgt. Regenerative Plating | -6/Data Miner | Free Cmb. Gravmag System | -6/Data Miner | Free Exp. Cesium-ion Thruster | -6/Data Miner | Free Exp. Sensor Array | -6/Data Miner | Free Mni. Smartbomb Launcher | -6/Data Miner | Free Plasma Sword | -6/Data Miner | Free Kinetic Spear | -6/Data Miner | Free Assault Drone Bay | -5/Zhirov | Free Exp. Heat Sink | -5/Zhirov | Free Exp. Optical Array | -5/Zhirov | Free Imp. Arc Thrower | -5/Zhirov | Free Robot Schematics ------------------ M-13 Machinist | -8/Materials | Hacked S-27 Virus | -6/Data Miner | Free G-50 Soldier | -6/Data Miner | Free G-67 Veteran | -6/Data Miner | Free L-41 Fighter | -6/Data Miner | Free X-72 Disruptor | -6/Data Miner | Free H-66 Slayer | -6/Data Miner | Free I-36 Angel | -6/Data Miner | Free Fabricated ------------ Combat Drone Bay | x1 | -5/Factory Alien Tech Used ----------------- Core Expander Integrated Dissipator Achievements -------------- Decoder Ring Challenges ------------ None Game ------ Seed TransdimensionalRecoilTrap Manual? 0 Play Time 05:14:48 Cumulative 1117.8 hours Start 2020.04.03 @ 17:40:36 End 2020.04.04 @ 13:06:16 Sessions 8 Manual Loads 0 Difficulty Rogue Special Mode AFD2020/Player2 Game No. 387 Rogue 387 Adventurer 0 Explorer 0 Win Type - Total 250 Types 214/6/11/3/3/2/11 Lore% 99 Gallery% 100 Achievement% 94 Wizard Run 0 Options --------- ASCII 0 Keyboard 0 Movement Numpad Keybinds 0 Fullscreen 1 Font 18/Terminus Map View 76x50 Tactical HUD 1 Map Filters NONE Filters NONE Steam 1 RUN: 828967c6-7231-4b41-9450-6e81049fb9c6